[Event "Austrian Bundesliga 2023-24"]
[Site "Austria"]
[Date "2024.03.21"]
[Round "8.15"]
[White "Vitiugov, Nikita"]
[Black "Lanka, Zigurds"]
[Result "1-0"]
[ECO "E11"]
[WhiteElo "2688"]
[BlackElo "2357"]
[Annotator "RC"]
[PlyCount "97"]
[EventDate "2023.10.21"]
[EventType "team-tourn"]
[EventCountry "AUT"]
[SourceTitle "playchess.com"]
[Source "ChessBase"]
[SourceQuality "1"]
[TimeControl "40/5400+30:1800+30"]

1. d4 {[%emt 0:00:08]} Nf6 {[%emt 0:00:10]} 2. c4 {[%emt 0:00:09]} e6 {[%emt 0:00:09]} 3. Nf3 {[%emt 0:01:05]} Bb4+ {[%emt 0:00:13]} 4. Nbd2 {[%emt 0:00:06]} b6 {[%emt 0:00:19]} 5. a3 {[%emt 0:00:12]} Bxd2+ {[%emt 0:00:08]} 6. Nxd2 {[%emt 0:00:33]} c5 {[%emt 0:02:19]} 7. e4 {[%emt 0:02:46]} O-O {[%emt 0:05:29]} 8. dxc5 {[%emt 0:06:23]} bxc5 {[%emt 0:01:19]} 9. e5 {[%emt 0:00:14]} Ne8 {[%emt 0:00:16]} 10. Bd3 {[%emt 0:01:27]} Nc6 {[%emt 0:01:59]} 11. Nf3 {[%emt 0:08:47]} f6 {[%emt 0:03:34]} 12. exf6 {[%emt 0:01:46]} Nxf6 {[%emt 0:00:17]} 13. O-O {[%emt 0:00:13]} Qc7 {[%emt 0:03:54]} 14. Re1 {[%emt 0:06:48]} d6 {[%emt 0:04:42]} 15. Bg5 {[%emt 0:02:58]} Rb8 {[%emt 0:03:50]} 16. Rb1 {[%emt 0:05:35]} a5 {[%emt 0:03:19]} 17. h3 {[%emt 0:04:51]} e5 {[%emt 0:01:27]} 18. Nd2 {[%emt 0:04:25]} Nd4 {[%emt 0:01:24]} 19. b3 {[%emt 0:03:09]} Bb7 {[%emt 0:01:51]} 20. Re3 {[%emt 0:01:17]} Bc6 {[%emt 0:04:43]} 21. Rb2 {[%emt 0:08:56]} Kh8 {[%emt 0:01:44]} 22. Nb1 {[%emt 0:05:22]} Rb6 {[%emt 0:07:48]} 23. Nc3 {[%emt 0:03:48]} Qb7 {[%emt 0:00:27]} 24. f4 {[%emt 0:02:37]} Rxb3 {[%emt 0:13:17]} 25. Rxb3 {[%emt 0:00:15]} Nxb3 {[%emt 0:01:11]} 26. Nb5 {[%emt 0:06:21]} Nd4 {[%emt 0:06:07]} 27. Nxd6 {[%emt 0:05:59]} Qb2 {[%emt 0:00:32]} 28. Rg3 {[%emt 0:01:31]} Ne6 {[%emt 0:05:26]} 29. Bxf6 {[%emt 0:05:40]} Rxf6 {[%emt 0:03:41]} 30. Qh5 {[%emt 0:01:02]} e4 {[%emt 0:05:54]} 31. Bxe4 {[%emt 0:00:38]} Bxe4 {[%emt 0:02:12]} 32. Qe8+ {[%emt 0:00:34]} Nf8 {[%emt 0:01:07]} 33. Nxe4 {[%emt 0:00:20]} Rxf4 {[%emt 0:01:50]} 34. Rg4 {[%emt 0:01:38]} Qa1+ {[%emt 0:00:43]} 35. Kh2 {[%emt 0:00:06]} Rf1 {[%emt 0:03:06]} 36. Ng3 {[%emt 0:00:28]} Rf2 {[%emt 0:00:55]} 37. Qe3 {[%emt 0:00:47]} Qb2 {[%emt 0:00:52]} 38. Nh5 {[%emt 0:03:02]} Qb8+ {[%emt 0:03:17]} 39. Kg1 {[%emt 0:01:20]} Rb2 {[%emt 0:01:10]} 40. Rf4 {[%emt 0:00:00]} Ng6 {[%emt 0:00:00]} 41. Rf1 {[%emt 0:03:37]} Nh4 {[%emt 0:12:52]} 42. Nf4 {[%emt 0:09:10]} Qa8 {[%emt 0:02:52]} 43. Qg3 {[%emt 0:04:50]} Nf5 {[%emt 0:00:45]} 44. Qg5 {[%emt 0:00:31]} Ne3 {[%emt 0:04:31]} 45. Re1 {[%emt 0:05:00]} Nxc4 {[%emt 0:00:06]} 46. Rd1 {[%emt 0:07:13]} Rb8 {[%emt 0:04:35]} 47. Rd7 {[%emt 0:00:27]} Rg8 {[%emt 0:00:20]} 48. Ng6+ {[%emt 0:00:06]} hxg6 {[%emt 0:00:04]} 49. Qh4# {[%emt 0:00:03]} 1-0

[Event "Austrian Bundesliga 2023-24"]
[Site "Austria"]
[Date "2024.03.21"]
[Round "8.16"]
[White "Platzgummer, Fabian"]
[Black "Maghsoodloo, Parham"]
[Result "0-1"]
[ECO "E08"]
[WhiteElo "2304"]
[BlackElo "2717"]
[Annotator "TA"]
[PlyCount "110"]
[EventDate "2023.10.21"]
[EventType "team-tourn"]
[EventCountry "AUT"]
[SourceTitle "playchess.com"]
[Source "ChessBase"]
[SourceQuality "1"]
[TimeControl "40/5400+30:1800+30"]

{[%evp 12,110,11,22,18,6,38,40,36,31,40,0,0,8,50,6,11,1,25,0,0,-7,0,0,0,0,0,-6,0,0,-8,-5,-13,0,-1,-22,0,-14,-10,-38,-6,-29,-46,-60,-52,-57,-50,-49,14,-36,-36,-42,-38,-97,-97,-97,-16,-18,-14,-30,37,-32,-6,-48,0,-7,0,-37,-37,-39,-36,-38,-25,-41,-46,-45,-24,-44,-35,-50,-41,-58,-58,-150,-150,-205,-118,-246,-227,-337,-339,-306,-264,-395,-395,-398,-389,-602,-612,-569,-568]} 1. Nf3 {[%emt 0:00:04]} Nf6 {[%emt 0:00:09]} 2. c4 {[%emt 0:00:15]} e6 {[%emt 0:00:05]} 3. g3 {[%emt 0:00:39]} d5 {[%emt 0:00:11]} 4. Bg2 {[%emt 0:00:23]} Be7 {[%emt 0:00:07]} 5. O-O {[%emt 0:00:33]} O-O {[%emt 0:00:06]} 6. d4 {[%emt 0:00:35]} Nbd7 {[%emt 0:00:09]} 7. Qc2 {[%emt 0:01:45]} a5 {[%emt 0:00:05]} 8. Nbd2 {[%emt 0:01:43]} a4 {[%emt 0:08:01]} 9. e4 {[%emt 0:17:37]} c6 {[%emt 0:16:54] White is slightly better.} 10. Rd1 {[%emt 0:12:48]} h6 {[%emt 0:08:49]} 11. cxd5 {[%emt 0:10:45]} cxd5 {[%emt 0:00:23]} 12. e5 {[%emt 0:00:12]} Nh7 {[%emt 0:00:06]} 13. Nf1 {[%emt 0:03:28]} Nb8 {[%emt 0:00:34][%cal Bd7b8,Bb8c6,Bc6b4][%mdl 32]} 14. h4 {[%emt 0:06:17]} Nc6 {[%emt 0:00:45]} 15. Be3 {[%emt 0:07:37]} Bd7 {[%emt 0:04:02]} 16. Rac1 {[%emt 0:03:20]} a3 {[%emt 0:08:06]} 17. b3 {[%emt 0:01:46]} Qb6 {[%emt 0:06:17]} 18. N1h2 {[%emt 0:09:09]} Rfc8 {[%emt 0:00:27]} 19. Qb1 {[%emt 0:00:07]} Nb4 {[%emt 0:01:44]} 20. Ne1 {[%emt 0:03:00]} Bb5 {[%emt 0:01:21]} 21. Bf1 {[%emt 0:01:51] Prevents Be2.} Bxf1 {[%emt 0:02:05]} 22. Nxf1 {[%emt 0:00:10]} Qb5 {[%emt 0:00:14]} 23. Bd2 {[%emt 0:07:40]} Nf8 {[%emt 0:02:49]} (23... Nc6 {keeps more tension.} 24. Nf3 Qe2 25. Kg2 Qe4) 24. Bxb4 {[%emt 0:02:36]} Bxb4 {[%emt 0:01:30]} 25. Rc2 {[%emt 0:01:02]} Bc3 {[%emt 0:11:01]} 26. Rdc1 {[%emt 0:01:35]} Qb4 {[%emt 0:00:06]} 27. Nf3 {[%emt 0:00:56]} Rc6 {[%emt 0:00:40]} 28. Ne3 {[%emt 0:00:18]} Rac8 $1 {[%emt 0:01:45]} (28... Bxd4 29. Rxc6 bxc6 30. Nc2 Bxf2+ 31. Kxf2 Qb6+ 32. Kg2 $16) 29. Kg2 {[%emt 0:01:36][%cal Oe3c4]} Ng6 {[%emt 0:01:58]} (29... Bxd4 $2 30. Rxc6 bxc6 (30... Rxc6 $2 31. Rxc6 Bxe3 32. Rc8 $18) 31. Nc2 $18) (29... Bb2 $1 $15 30. Rd1 Rxc2 31. Nxc2 Qb5) 30. Rd1 {[%emt 0:01:10]} (30. Nc4 $1 $11) 30... Ne7 $15 {[%emt 0:00:50]} 31. Rd3 {[%emt 0:00:54]} Qb6 {[%emt 0:03:16]} 32. Nd1 {[%emt 0:02:11]} ({White should try} 32. Qd1 $15) 32... Ba5 $17 {[%emt 0:03:02] Black is more active.} 33. Ne3 {[%emt 0:00:28]} Qb5 {[%emt 0:01:30]} (33... Rxc2 $17 34. Nxc2 Qc6) 34. Rxc6 $11 {[%emt 0:01:02]} Nxc6 {[%emt 0:00:05]} 35. b4 {[%emt 0:00:44]} Bb6 {[%emt 0:09:12]} (35... Bxb4 36. Rxa3 Na5 37. Ne1 $11) ({Black should play} 35... Qxb4 $11 36. Rb3 Qa4) 36. Qd1 {[%emt 0:00:59]} (36. Rc3 $14) 36... Qxb4 {[%emt 0:01:58]} 37. Nc2 {[%emt 0:00:36]} (37. Rb3 $5 Qa5 $8 38. Nc2 $11) 37... Qf8 {[%emt 0:04:37]} (37... Qc4 $15 {should be considered.}) 38. Rb3 {[%emt 0:00:15]} Ba5 {[%emt 0:00:37]} 39. Rxa3 {[%emt 0:00:40]} Bd8 {[%emt 0:01:13]} 40. Rc3 {[%emt 0:00:00]} Ra8 {[%emt 0:00:00]} 41. Qb1 {[%emt 0:03:02]} Qe7 {[%emt 0:05:18]} 42. Rb3 {[%emt 0:01:58]} Na5 {[%emt 0:02:14]} 43. Rb5 {[%emt 0:00:06]} Rc8 {[%emt 0:01:18]} 44. Ne3 {[%emt 0:02:42]} b6 {[%emt 0:03:41]} 45. Qd3 {[%emt 0:10:56]} Nc4 {[%emt 0:01:20]} 46. Nd2 {[%emt 0:06:17][%cal Rd2c4]} Qb7 {[%emt 0:02:15]} 47. a4 {[%emt 0:00:40] [#]} ({Better is} 47. Rb3 $15) 47... Qa8 $1 $17 {[%emt 0:00:30]} 48. Rb4 {[%emt 0:07:35]} (48. Rb1 $17 {might work better.}) 48... Be7 {[%emt 0:03:33]} (48... Qa5 $19 49. Rxc4 (49. Nc2 $2 Nxd2 50. Rb2 Nc4 $19) 49... dxc4 50. Ndxc4 Qxa4) 49. Rb3 {[%emt 0:00:04] Now White is beyond hope.} (49. Rb1 $17) 49... Qxa4 $19 {[%emt 0:00:22] Threatens to win with ...Nxd2.} 50. Nf3 {[%emt 0:00:03]} (50. Rb1 $142) 50... b5 {[%emt 0:00:25]} 51. g4 {[%emt 0:00:03]} g6 {[%emt 0:03:03]} 52. Qb1 {[%emt 0:02:01]} (52. h5 $142 g5 53. Qb1) 52... b4 {[%emt 0:00:20]} 53. h5 {[%emt 0:01:22]} g5 {[%emt 0:00:20]} 54. Nxd5 {[%emt 0:00:16]} (54. Rd3 $142) 54... exd5 {[%emt 0:00:04]} 55. e6 {[%emt 0:00:04]} Qe8 {[%emt 0:01:45] Weighted Error Value: White=0.28 (precise) /Black=0.15 (very precise) .  Mistake:       	White=9     	Black=5      Inaccurate:     	White=5     	Black=4      OK:         	White=14    	Black=20     Strong:       	---       	Black=1} ({Not} 55... fxe6 56. Qg6+ Kf8 57. Rd3 $17 (57. Qxh6+ Ke8 $11)) 0-1

[Event "Austrian Bundesliga 2023-24"]
[Site "Austria"]
[Date "2024.03.21"]
[Round "8.17"]
[White "Vallejo Pons, Francisco"]
[Black "Tabernig, Bernhard"]
[Result "1-0"]
[ECO "C00"]
[WhiteElo "2653"]
[BlackElo "2250"]
[Annotator "TA"]
[PlyCount "59"]
[EventDate "2023.10.21"]
[EventType "team-tourn"]
[EventCountry "AUT"]
[SourceTitle "playchess.com"]
[Source "ChessBase"]
[SourceQuality "1"]
[TimeControl "40/5400+30:1800+30"]

{[%evp 9,59,0,0,0,-15,-21,9,0,64,76,95,73,118,122,233,170,195,148,189,127,142,149,153,105,109,127,127,103,239,201,429,438,638,643,662,675,660,664,716,747,760,739,1417,1400,29986,904,29985,936,1583,547,603,547]} 1. e4 {[%emt 0:00:06]} e6 {[%emt 0:00:08]} 2. b3 {[%emt 0:00:12]} c5 {[%emt 0:02:30]} 3. Bb2 {[%emt 0:01:33]} b6 {[%emt 0:00:25]} 4. Nc3 {[%emt 0:13:24]} Bb7 {[%emt 0:03:34]} 5. d4 {[%emt 0:01:27]} cxd4 {[%emt 0:07:49]} 6. Qxd4 {[%emt 0:01:01]} Nc6 {[%emt 0:02:53]} 7. Qe3 {[%emt 0:01:10]} Nf6 {[%emt 0:06:37]} 8. O-O-O {[%emt 0:06:55] Die Stellung ist ausgeglichen.} Qb8 {[%emt 0:20:08]} (8... Rc8 $1 $11) 9. Nh3 {[%emt 0:08:14]} h6 {[%emt 0:15:20]} 10. f4 {[%emt 0:09:21] Weiß steht aktiver.} Bc5 {[%emt 0:03:44]} 11. Qg3 {[%emt 0:02:29]} g5 {[%emt 0:13:35]} 12. Nb5 {[%emt 0:13:06]} (12. fxg5 Qxg3 13. hxg3 hxg5 $14) 12... Nxe4 {[%emt 0:04:05]} 13. Qe1 {[%emt 0:01:31]} d5 {[%emt 0:01:34][%cal Bd7d5,Bd5d4][%mdl 32]} 14. Bxh8 {[%emt 0:00:48]} (14. Bd3 $18) 14... g4 $16 {[%emt 0:00:10] [#]} 15. Nc3 $1 {[%emt 0:13:31]} Nxc3 {[%emt 0:05:02]} 16. Bxc3 {[%emt 0:03:35]} (16. Qxc3 $142 {Schwarz muss nun Ng1 beachten.} gxh3 17. Qxh3 Qxf4+ 18. Kb1) 16... gxh3 {[%emt 0:01:03]} 17. g3 $36 {[%emt 0:00:22][%cal Of4f5][%mdl 2048] f5! ist eine echte Drohung. Schwarz muss aufpassen.} (17. Rxd5 Qxf4+ 18. Bd2 Qf6 $15) 17... d4 {[%emt 0:00:21]} 18. Bb2 {[%emt 0:00:49]} Nb4 {[%emt 0:03:27] Danach kann Schwarz die Partie nicht mehr halten.} (18... Qc7 $16) 19. a3 $18 {[%emt 0:02:59]} (19. Bb5+ Kf8 $16) 19... Na2+ {[%emt 0:04:32] [#]} (19... Bxh1 $2 20. axb4 Bf3 21. bxc5 (21. Rd3 Bg2 $18) 21... bxc5 22. Be2 Bxe2 23. Qxe2 $18) (19... Nd5 20. b4 (20. Bxd4 Qd6 $16) (20. Bxh3 Ne3 $16) 20... Ne3) 20. Kb1 {[%emt 0:00:10]} Bxh1 {[%emt 0:00:01]} (20... Nc3+ $142 21. Bxc3 dxc3 22. Bb5+ Kf8 23. Qxc3 Kg8) 21. Bb5+ {[%emt 0:01:00][%cal Bf1b5,Bb5c6,Bc6a8][%mdl 32]} (21. Kxa2 Qc7 $16 (21... Bf3 22. Rd2 $16)) 21... Kf8 {[%emt 0:00:51]} 22. Qxh1 {[%emt 0:00:16]} Nc3+ {[%emt 0:00:10]} 23. Bxc3 {[%emt 0:00:13]} dxc3 {[%emt 0:00:06]} 24. Bc6 {[%emt 0:00:26]} Qc8 {[%emt 0:01:24]} 25. Bxa8 {[%emt 0:00:33]} Qa6 {[%emt 0:00:33]} 26. Qf3 {[%emt 0:04:21]} Qa5 {[%emt 0:00:43]} 27. a4 {[%emt 0:02:58]} (27. Rd8+ $142 Ke7 28. Rc8 Bf2 29. Qxf2 Qxa3 30. Rc7+ (30. Rxc3 Qb4 $18) 30... Kf8 31. Rxc3 (31. Rc8+ Ke7 $18) 31... Qd6 32. f5 (32. Rc8+ Ke7 $18) 32... exf5 33. Rc8+ Kg7 34. Qxf5) 27... Qb4 {[%emt 0:01:40]} 28. Qd3 {[%emt 0:01:26]} (28. f5 $142 exf5 29. Qxf5 Bd4 30. Qc8+ (30. Qxh3 Qa3 $18) 30... Kg7 31. Qg4+ (31. Qxh3 Qa3 $11) 31... Kf6 32. Rxd4 (32. Qxd4+ Qxd4 33. Rxd4 h5 $18) 32... Qxd4 33. Qxd4+ Ke7 34. Bd5 (34. Qxc3 Ke6 35. Qc6+ Ke7 36. Qc7+ Ke6 37. Qxa7 h5 38. Qxb6+ Ke5 39. Qc5+ Kf6)) 28... Be7 {[%emt 0:00:31]} 29. Qc4 {[%emt 0:00:39]} Qa5 {[%emt 0:01:18]} 30. Qb5 {[%emt 0:00:32] Gewichteter Fehlerwert: Weiß=0.41/Schwarz=0.97.  Fehler:       	Weiß=2     	Schwarz=5     Ungenau:       	---       	Schwarz=1     OK:         	Weiß=5     	Schwarz=4     Bester:       	Weiß=2     	Schwarz=4} 1-0

[Event "Austrian Bundesliga 2023-24"]
[Site "Austria"]
[Date "2024.03.21"]
[Round "8.18"]
[White "Schiestl, Josef"]
[Black "Bacrot, Etienne"]
[Result "0-1"]
[ECO "B24"]
[WhiteElo "2064"]
[BlackElo "2680"]
[Annotator "TA"]
[PlyCount "76"]
[EventDate "2023.10.21"]
[EventType "team-tourn"]
[EventCountry "AUT"]
[SourceTitle "playchess.com"]
[Source "ChessBase"]
[SourceQuality "1"]
[TimeControl "40/5400+30:1800+30"]

{[%evp 10,76,27,16,18,14,20,24,20,23,15,7,31,24,29,32,31,22,13,14,27,16,45,9,8,-1,0,0,0,-11,-3,-22,0,-29,-21,-27,-33,-60,-43,-64,-52,-91,-64,-71,0,-91,-64,-100,-99,-116,-125,-183,-184,-125,-111,-157,-141,-261,-257,-929,-943,-865,-702,-354,-162,-2837,-2688,-2250,-2054]} 1. e4 {[%emt 0:00:05]} c5 {[%emt 0:00:05]} 2. Nc3 {[%emt 0:00:10]} Nc6 {[%emt 0:01:01]} 3. Bb5 {[%emt 0:00:16]} Nd4 {[%emt 0:01:00]} 4. Nf3 {[%emt 0:00:27]} Nxb5 {[%emt 0:00:44]} 5. Nxb5 d6 6. d4 {[%emt 0:04:38]} Nf6 {[%emt 0:04:47]} 7. Nc3 {[%emt 0:07:49]} cxd4 {[%emt 0:00:29]} 8. Qxd4 {[%emt 0:00:27]} e5 {[%emt 0:00:08] Weiß hat minimalen Vorteil.} 9. Qd3 {[%emt 0:00:39]} h6 {[%emt 0:00:05] Wehrt Bg5 ab} 10. O-O {[%emt 0:05:29]} Be7 {[%emt 0:05:07]} 11. Rd1 {[%emt 0:08:09]} O-O {[%emt 0:07:26]} 12. Nd2 {[%emt 0:06:09]} Be6 {[%emt 0:07:05]} 13. Nc4 {[%emt 0:01:37]} Qc7 {[%emt 0:03:00]} 14. Ne3 {[%emt 0:02:20]} Rfc8 {[%emt 0:02:49]} 15. Bd2 {[%emt 0:02:22]} Qc6 {[%emt 0:07:52]} 16. Rac1 {[%emt 0:02:29]} a6 {[%emt 0:08:37]} 17. Be1 {[%emt 0:08:19]} b5 {[%emt 0:01:57]} 18. Ncd5 {[%emt 0:00:46]} Bxd5 {[%emt 0:03:37]} 19. Nxd5 {[%emt 0:00:16]} Nxd5 {[%emt 0:00:09]} 20. exd5 {[%emt 0:11:15]} Qd7 {[%emt 0:08:56]} 21. Bd2 {[%emt 0:01:15]} Rc4 {[%emt 0:03:22]} 22. c3 {[%emt 0:01:57]} Bg5 {[%emt 0:02:28]} 23. Re1 {[%emt 0:08:58]} Rac8 {[%emt 0:03:51]} 24. Rcd1 {[%emt 0:00:20]} f5 {[%emt 0:02:23]} 25. f3 {[%emt 0:01:45]} Ra4 {[%emt 0:04:03]} 26. Ra1 {[%emt 0:03:05]} Rac4 {[%emt 0:05:05] Schwarz steht aktiver.} 27. Rad1 {[%emt 0:00:21]} Qf7 {[%emt 0:02:12]} 28. Be3 {[%emt 0:00:34]} Bxe3+ {[%emt 0:00:44]} 29. Rxe3 {[%emt 0:00:56]} b4 {[%emt 0:02:06]} 30. b3 {[%emt 0:03:09]} (30. Ree1 $17) 30... Rxc3 $19 {[%emt 0:02:18]} 31. Qxa6 {[%emt 0:00:05]} Qc7 {[%emt 0:01:09]} 32. Re2 {[%emt 0:02:56]} (32. Ree1 $142) 32... Qc5+ $17 {[%emt 0:01:12]} 33. Kf1 {[%emt 0:04:42]} (33. Kh1 $17) 33... e4 $19 {[%emt 0:02:11]} 34. fxe4 $2 {[%emt 0:05:11] [#]} (34. Red2) 34... fxe4 {[%emt 0:01:07]} 35. g3 {[%emt 0:00:27]} Rf8+ {[%emt 0:04:42]} 36. Kg2 {[%emt 0:00:07]} Rcf3 {[%emt 0:01:24]} (36... Rc2 $142 {( -> ...Rf2+)} 37. Rf1 Rxf1 38. Kxf1 Rc1+ 39. Re1 Rxe1+ 40. Kxe1 Qg1+ (40... Qxd5 41. Qb6 $17) 41. Ke2 Qxh2+ 42. Ke3 Qxg3+ 43. Kxe4 h5) 37. Qc4 $2 {[%emt 0:02:29]} (37. Rde1) 37... Rf2+ {[%emt 0:00:18]} 38. Kh3 {[%emt 0:01:01]} Qxc4 {[%emt 0:00:09] Gewichteter Fehlerwert: Weiß=0.59/Schwarz=0.29 (präzise) .  Fehler:       	Weiß=4     	---        Ungenau:       	Weiß=5     	Schwarz=1     OK:         	Weiß=6     	Schwarz=9     Bester:       	Weiß=3     	Schwarz=2} 0-1

[Event "Austrian Bundesliga 2023-24"]
[Site "Austria"]
[Date "2024.03.21"]
[Round "8.19"]
[White "Janzelj, Tim"]
[Black "Kadric, Denis"]
[Result "1/2-1/2"]
[ECO "A53"]
[WhiteElo "2403"]
[BlackElo "2560"]
[Annotator "TA"]
[PlyCount "60"]
[EventDate "2023.10.21"]
[EventType "team-tourn"]
[EventCountry "AUT"]
[SourceTitle "playchess.com"]
[Source "ChessBase"]
[SourceQuality "1"]
[TimeControl "40/5400+30:1800+30"]

{[%evp 17,60,12,0,-15,0,-18,-10,-18,0,0,0,-28,-12,-18,0,0,0,0,-4,0,0,0,0,0,0,0,0,0,0,0,0,-10,-9,-15,0,0,0,0,8,8,10,8,8,6,8]} 1. d4 {[%emt 0:00:03]} Nf6 {[%emt 0:00:10]} 2. c4 {[%emt 0:00:04]} d6 {[%emt 0:00:20]} 3. Nf3 {[%emt 0:01:59]} Nbd7 {[%emt 0:01:27]} 4. Nc3 {[%emt 0:00:41]} e5 {[%emt 0:00:03]} 5. g3 {[%emt 0:03:26]} g6 {[%emt 0:00:24]} 6. Bg2 {[%emt 0:00:28]} Bg7 {[%emt 0:00:02]} 7. O-O {[%emt 0:01:34]} O-O {[%emt 0:00:05]} 8. Qc2 {[%emt 0:04:26]} exd4 {[%emt 0:05:58]} 9. Nxd4 {[%emt 0:00:14]} Nb6 {[%emt 0:00:02]} 10. Na4 {[%emt 0:06:36]} c6 {[%emt 0:13:16]} 11. Rd1 {[%emt 0:06:24]} Re8 {[%emt 0:01:15]} 12. Bf4 {[%emt 0:03:10]} d5 {[%emt 0:09:20]} 13. Nxb6 {[%emt 0:05:40]} Qxb6 {[%emt 0:00:03]} 14. Qb3 {[%emt 0:22:50]} dxc4 {[%emt 0:22:49]} 15. Qxc4 {[%emt 0:00:13] The position is equal.} Nd5 {[%emt 0:01:57]} 16. Bxd5 {[%emt 0:02:04]} cxd5 {[%emt 0:00:03]} 17. Qb5 {[%emt 0:01:00]} Bh3 {[%emt 0:14:16]} (17... Bxd4 $2 {too greedy.} 18. Qxe8+ Kg7 19. Rxd4 $18) 18. Qxb6 {[%emt 0:00:28]} axb6 {[%emt 0:00:01]} 19. e3 {[%emt 0:03:12]} Rec8 {[%emt 0:03:39]} 20. f3 {[%emt 0:05:21]} h6 {[%emt 0:05:19]} 21. Rd2 {[%emt 0:01:12]} g5 {[%emt 0:11:59]} 22. Bd6 {[%emt 0:00:08][%cal Bf4d6,Bd6a3,Ba3e7][%mdl 32]} Bxd4 {[%emt 0:00:43]} 23. exd4 {[%emt 0:00:08]} Rc6 {[%emt 0:00:01]} 24. Ba3 {[%emt 0:03:04]} Ra4 {[%emt 0:02:11]} 25. Kf2 {[%emt 0:03:10]} Be6 {[%emt 0:00:06]} 26. g4 {[%emt 0:03:52]} Kg7 {[%emt 0:00:57]} 27. Be7 {[%emt 0:01:52]} Rac4 {[%emt 0:00:41]} 28. h4 {[%emt 0:07:45]} f6 {[%emt 0:00:09]} 29. hxg5 {[%emt 0:00:28]} hxg5 {[%emt 0:00:21]} 30. a3 {[%emt 0:00:26]} Kf7 {[%emt 0:00:27] A rather calm draw.   Weighted Error Value: White=0.05 (flawless) /Black=0.05 (flawless) .  Inaccurate:     	White=1     	---        OK:         	White=10    	Black=7} 1/2-1/2

[Event "Austrian Bundesliga 2023-24"]
[Site "Austria"]
[Date "2024.03.21"]
[Round "8.20"]
[White "Erdos, Viktor"]
[Black "Pajeken, Jakob Leon"]
[Result "1/2-1/2"]
[ECO "D26"]
[WhiteElo "2552"]
[BlackElo "2424"]
[Annotator "TA"]
[PlyCount "74"]
[EventDate "2023.10.21"]
[EventType "team-tourn"]
[EventCountry "AUT"]
[SourceTitle "playchess.com"]
[Source "ChessBase"]
[SourceQuality "1"]
[TimeControl "40/5400+30:1800+30"]

{[%evp 19,74,5,11,19,12,12,26,18,0,5,10,14,37,18,14,9,15,0,48,46,45,50,45,49,45,43,68,49,53,63,47,40,32,39,82,43,124,115,115,108,151,121,127,117,118,118,170,179,166,0,35,35,41,0,7,0,0]} 1. d4 {[%emt 0:00:04]} d5 {[%emt 0:00:05]} 2. Nf3 {[%emt 0:00:14]} Nf6 {[%emt 0:00:20]} 3. c4 {[%emt 0:00:07]} dxc4 {[%emt 0:00:09]} 4. e3 {[%emt 0:00:06]} e6 {[%emt 0:00:09]} 5. Bxc4 {[%emt 0:00:21]} c5 {[%emt 0:00:04]} 6. O-O {[%emt 0:00:07]} Nc6 {[%emt 0:00:07][%cal Bb8c6,Bc6b4,Bb4d3][%mdl 32]} 7. Qe2 {[%emt 0:00:49]} a6 {[%emt 0:00:06]} 8. Rd1 {[%emt 0:01:02]} b5 {[%emt 0:00:05]} 9. dxc5 {[%emt 0:00:58]} Qc7 {[%emt 0:00:04]} 10. Bd3 {[%emt 0:00:06]} Nb4 {[%emt 0:00:04][%cal Oc8b7]} 11. a4 {[%emt 0:02:09]} Nxd3 {[%emt 0:00:21]} 12. Qxd3 {[%emt 0:00:06] Black must now prevent b4.} (12. Rxd3 {simplifies} b4 13. Nbd2 Bxc5 14. b3) 12... b4 {[%emt 0:00:04][%cal Oc8b7]} 13. b3 {[%emt 0:04:41] White has an edge.} Bxc5 {[%emt 0:01:13]} 14. Bb2 {[%emt 0:00:54]} Bb7 {[%emt 0:10:37]} 15. Nbd2 {[%emt 0:01:33]} O-O {[%emt 0:11:37]} (15... Rc8 {keeps more tension.} 16. Rac1 O-O 17. Ng5 Rfd8) 16. Bxf6 {[%emt 0:28:47]} gxf6 {[%emt 0:00:25]} 17. Ne4 {[%emt 0:00:06]} Be7 {[%emt 0:07:57] A strong pair of Bishops.} 18. Rac1 {[%emt 0:00:12]} Qa5 {[%emt 0:01:32]} (18... Qd8 $11 {is more appropriate.} 19. Qe2 Qb6) 19. Qd7 $14 {[%emt 0:02:12][%csl LRb7,LRe7]} Bxe4 {[%emt 0:01:23]} 20. Qxe7 {[%emt 0:00:06]} Bxf3 {[%emt 0:05:48]} 21. gxf3 $40 {[%emt 0:01:18][%cal Oc1c5][%mdl 128] Black needs to defend precisely.} Qf5 {[%emt 0:01:28]} 22. Rd4 {[%emt 0:02:26][%cal Bd1d4,Bd4g4,Bg4f4,Bf4f6,Bf6a6,Ba6a7][%mdl 32]} Rae8 {[%emt 0:18:57]} 23. Qxb4 {[%emt 0:09:20] And now Rg4+ would win.} Kh8 {[%emt 0:00:25][%cal Oa6a5] Black is weak on the dark squares} 24. Rg4 $1 {[%emt 0:09:12] Strongly threatening Rg3. Active counter play!} Qxf3 {[%emt 0:06:18]} 25. Qf4 {[%emt 0:06:45]} (25. Rg3 {is interesting.} Rg8 26. Qd6 a5 27. Qc7) 25... Qxf4 {[%emt 0:03:31]} 26. Rxf4 {[%emt 0:00:02][%mdl 4096] Endgame. KRR-KRR} Rb8 {[%emt 0:01:09]} 27. b4 {[%emt 0:01:10][%cal Oc1c6]} e5 {[%emt 0:16:33]} (27... f5 $14) 28. Rxf6 $16 {[%emt 0:03:28]} Rxb4 {[%emt 0:00:06]} 29. Rxa6 {[%emt 0:00:07]} Rb2 {[%emt 0:01:08]} 30. Ra7 {[%emt 0:05:29]} Ra2 {[%emt 0:01:20]} 31. Rb1 {[%emt 0:08:31]} Kg7 {[%emt 0:02:53]} 32. Rb6 {[%emt 0:00:27]} e4 {[%emt 0:03:22]} (32... Rg8 $16) 33. Rb5 $18 {[%emt 0:07:15]} Kh6 {[%emt 0:00:53]} 34. Rb1 $2 {[%emt 0:02:58] [#]} (34. Ra6+ $18 f6 35. Kf1) 34... f6 {[%emt 0:01:21]} 35. Kf1 {[%emt 0:01:34] Hoping for Rb4.} Rg8 $1 {[%emt 0:01:15]} 36. Rf7 {[%emt 0:01:59]} Kg6 {[%emt 0:00:27]} 37. Ra7 {[%emt 0:00:51]} Rc8 {[%emt 0:01:36] Weighted Error Value: White=0.10 (very precise) /Black=0.13 (very precise) .  Missed win:     	White=1     	---        Mistake:       	---       	Black=3      Inaccurate:     	White=2     	Black=3      OK:         	White=9     	Black=15     Best:        	White=4     	---        Strong:       	White=1     	Black=1} 1/2-1/2